Workbook

Sheet SJBZ
B1: Richtofferte G R U P P E N H Ä U S E R
B2: =$C$4&" mit Anreise vom "&TEXT($C$9,"TT.MM.JJJJ") -> Gruppennamen mit Anreise vom 01.01.2020 | AI2: Liste -> | AK2: Anreise | AL2: Abreise | AM2: Pension
B4: Gruppenname: | C4: Gruppennamen
B5: Organisator/in: | C5: Frau Muster Hanna | AI5: 1 | AK5: 16:00h | AL5: 10:00h | AM5: Selbstversorgung
B6: Telefon: | C6: 055 000 00 00 | AI6: 2 | AK6: - - - - - - | AL6: - - - - - - | AM6: - - - - - -
B7: E-Mail: | C7: muster.hanna@email.ch | AI7: 3 | AK7: vor 14:00h | AL7: 07:00-10:00h | AM7: inkl. Frühstück
AI8: 4 | AK8: 14:00-16:00h | AL8: 10:00-12:00h | AM8: inkl. Halbpension
B9: Anreisetag: | C9: 2020-01-01 | D9: =C9 -> 2020-01-01 | AA9: =+C11-C9 -> 01 | AC9: Nächte / Aufenthalt | AI9: 5 | AK9: nach 16:00h | AL9: nach 12:00h | AM9: inkl. Vollpension
B10: Zeit der Anreise: | C10: 16:00h | D10: =IF(C10=AK6," bitte korrekte Zeit eingeben <!>",IF(Z10=3,"zusätzlicher Tag <!>",IF(Z10=4,"Zuschlag frühe Anreise"," "))) ->  | H10: =AA10 -> 0.00 | Z10: =IF(C10=AK5,1,IF(C10=AK6,2,IF(C10=AK7,3,IF(C10=AK8,4,IF(C10=AK9,5,IF(C10=AK10,6,0)))))) -> 1 | AA10: =IF(Z10=1,0,IF(Z10=2,150,IF(Z10=3,25*AJ20,IF(Z10=4,150,IF(AK10=5,0,0))))) -> 0 | AC10: Zuschlag frühe Anreise | AI10: 6
B11: Abreisetag: | C11: 2020-01-02 | D11: =C11 -> 2020-01-02
B12: Zeit der Abreise: | C12: 10:00h | D12: =IF(Z12=2,"bitte korrekte Zeit eingeben <!>",IF(Z12=4,"Zuschlag späte Abreise",IF(Z12=5,"zusätzliche Übernachtung <!>"," "))) ->  | H12: =+AA12 -> 0.00 | Z12: =IF(C12=AL5,1,IF(C12=AL6,2,IF(C12=AL7,3,IF(C12=AL8,4,IF(C12=AL9,5,IF(C12=AL10,6,0)))))) -> 1 | AA12: =IF(Z12=1,0,IF(Z12=2,150,IF(Z12=3,0,IF(Z12=4,150,IF(Z12=5,25*AJ20,0))))) -> 0 | AC12: Zuschlag späte Abreise
Y13: Saisonermittlung
C14: Saisonzeit: | F14: =IF(Y15="Hochtarif","Normaltarif","Normaltarif") -> Normaltarif | Y14: =MONTH(C9) -> Monat: #1 | Z14: =IF(Y15="Niedertarif",2,1) -> 2 | AA14: 1 = Hoch | AK14: Hoch (Apr.-Sept.) | AL14: Niedrig (Okt.-Mrz.)
C15: Gesamtaufenthalt: | F15: =IF(AA9=1,AA9&" Nacht",IF(AA9=0," Tagesaufenthalt",AA9&" Nächte")) -> 1 Nacht | Y15: =IF(AND(Y14>=4,Y14<=9),"Hochtarif","Niedertarif") -> Niedertarif | AA15: 2 = Tief | AI15: Self Hoch | AJ15: Self Niedr. | AK15: Frühstück | AL15: Mittag | AM15: Abendessen
AA16: =IF($Z$14=1,C18*AI16,C18*AJ16) -> 220 | AC16: Kosten pro Nacht | AI16: 27 | AJ16: 22 | AK16: 10 | AL16: 15 | AM16: 17 | AN16: -> Erwachsene
E17: pro Nacht | F17: Total Aufenthalt | AA17: =IF($Z$14=1,C19*AI17,C19*AJ17) -> 0 | AC17: Kosten pro Nacht | AI17: 22 | AJ17: 17 | AK17: 8 | AL17: 13 | AM17: 15 | AN17: -> Jugendliche
B18: Ü B E R N A C H T U N G | C18: 10 | D18: ab 15 Jahre | E18: =IF($Z$14=1,25,25) -> à CHF 25.00 | F18: =+$AA$9*C18*E18 -> 250.00 | AA18: =IF($Z$14=1,C20*AI18,C20*AJ18) -> 0 | AC18: Kosten pro Nacht | AI18: 20 | AJ18: 15 | AK18: 6 | AL18: 10 | AM18: 12 | AN18: -> Kinder
A19: =SUM(F18:F21)/AA9 -> 250.00 | D19: 12-14 Jahre | E19: =IF($Z$14=1,22,22) -> à CHF 22.00 | F19: =+$AA$9*C19*E19 -> 0.00 | R19: Basis pro Vermietung | Z19: =SUM(C18:C20) -> 10 | AA19: =IF($Z$14=1,C22*AI19,C22*AJ19) -> 0 | AC19: Brgn-Min. | AI19: 24 | AJ19: 19
A20: =IF(A22>=20,700,550) -> 700.00 | D20: 06-11 Jahre | E20: =IF($Z$14=1,20,20) -> à CHF 20.00 | F20: =+$AA$9*C20*E20 -> 0.00 | R20: Reinigung: | T20: =9*48 -> 432 | AA20: =SUM(AA16:AA19)/2 -> 110 | AC20: Total Kosten pro Nacht durch 2 | AJ20: =IF(Z14=2,AJ16,AI16) -> 22 | AK20: = saisonaler Nachtpreis
A21: =IF(C21>0,100/SUM(C18:C20)*C21,0) -> 0.00 | D21: 00-05 Jahre | E21: =IF(A21<=18,5,5) -> à CHF 5.00 | F21: =+$AA$9*C21*E21 -> 0.00 | R21: Reinigung: | T21: =9*48 -> 432 | AA21: =SUM(AA17:AA20)/2 -> 55 | AC21: Total Kosten pro Nacht durch 2 | AJ21: =IF(Z15=2,AJ17,AI17) -> 22 | AK21: = saisonaler Nachtpreis
A22: =IF(C23>=1,100/SUM(C18:C20)*C18,0) -> 100% | C22: =IF(A22>=20,0,"für Schulen ->") -> 0 | D22: Berechnungsmin. | E22: =IF(A22>=20,700,550) -> CHF 700.-/Nacht | F22: =IF(A19<A20,(A20-A19)*AA9,0) -> 450.00 | H22: =IF(C11-C9=0,1015,0) -> 0.00 | R22: Strom / Wasser: | T22: 80 | AA22: =AA9+1 -> 2 | AC22: Tage
C23: =SUM(C18:C21) -> 10 | D23: =IF($C$23<=48,"Übernachtungsgäste insgesamt","ein einzelnes Gruppenhaus hat Platz für max. 48 Gäste") -> Übernachtungsgäste insgesamt | H23: =SUM(F18:F23) -> 700.00 | R23: Amortisation: | T23: 315
D24: =IF(AND(C23>48,C23<=65),"warum nicht Pilgerzimmer, anstatt ein zweites Gruppenhaus?","") ->  | R24: Administration | T24: 90
D25: =IF(AND(AA9>=5,AA9<10),8,0)+IF(AND(AA9>=10,AA9<50),12,0) -> 0% Rabatt Langzeitaufenthalt | H25: =IF(AND(AA9>=5,AA9<10),-H23*0.08,0)+IF(AND(AA9>=10,AA9<50),-H23*0.12,0) -> 0.00 | W25: Kue-Miete | X25: HP pro Tag | Y25: pro Tag | Z25: An-ab | AA25: Total
D26: =IF(AA9<=2,"Zuschlag Kurzaufenthalte von 1-2 Nächten",0) -> Zuschlag Kurzaufenthalte von 1-2 Nächten | H26: =IF(AA9<=2,100,0) -> 100.00 | T26: =SUM(T20:T25) -> 1349 | X26: 0 | Y26: 95 | Z26: -60 | AA26: =IF(C31=AM8,(AA22*X26),(AA22*Y26+Z26)) -> 130 | AC26: Total Küchenmiete
C28: Total Übernachtung | H28: =SUM(H4:H27) -> 800.00
B31: V E R P F L E G U N G | C31: Selbstversorgung | D31: =IF(C31="Selbstversorgung","inkl. Küchenmiete während "&AA22&" Tagen","ohne Küchenmiete") -> inkl. Küchenmiete während 2 Tagen | G31: =IF(C31="Selbstversorgung",0,0) -> 0.00 | H31: =IF(C31="Selbstversorgung",((AA9+1)*G31),0) -> 0.00 | Z31: =IF(C31=AM9,C18*AL16+C19*AL17+C20*AL18,0) -> 0 | AC31: Preis pro ME pro Tag
C33: Pensionsleistung: | D33: nur Frühstück | E33: inkl. HP | F33: inkl. VP
C34: =+C18 -> 10x | ab 15 Jahre | D34: =IF($C$23>35,10,10) -> à CHF 10.00 | E34: =IF($C$23>35,27,27) -> à CHF 27.00 | F34: =+E34+13 -> à CHF 40.00 | H34: =IF(C31=AM7,(D34*$AA$9*C34),IF(C31=AM8,(E34*$AA$9*C34),IF(C31=AM9,(F34*$AA$9*C34),0))) -> 0.00
C35: =IF(C19<=0,1E-25,C19) -> 00x | 12-14 Jahre | D35: =IF($C$38>25,7,7) -> à CHF 07.00 | E35: =IF($C$23>35,21,21) -> à CHF 21.00 | F35: =+E35+11 -> à CHF 32.00 | H35: =IF(C31=AM7,(D35*$AA$9*C35),IF(C31=AM8,(E35*$AA$9*C35),IF(C31=AM9,(F35*$AA$9*C35),0))) -> 0.00
C36: =IF(C20<=0,1E-25,C20) -> 00x | 06-11 Jahre | D36: =IF($C$38>25,6,6) -> à CHF 06.00 | E36: =IF($C$23>35,18,18) -> à CHF 18.00 | F36: =+E36+10 -> à CHF 28.00 | H36: =IF(C31=AM7,(D36*$AA$9*C20),IF(C31=AM8,(E36*$AA$9*C20),IF(C31=AM9,(F36*$AA$9*C20),0))) -> 0.00
C37: =IF(C21<=0,1E-25,C21) -> 00x | 00-05 Jahre | D37: =IF($C$38>25,5,5) -> à CHF 05.00 | E37: =IF($C$23>35,10,10) -> à CHF 10.00 | F37: =+E37+5 -> à CHF 15.00 | H37: =IF(C32=AM8,(D37*$AA$9*C21),IF(C32=AM9,(E37*$AA$9*C21),IF(C32=AM10,(F37*$AA$9*C21),0))) -> 0.00
D39: =IF(C23>=30,"5% Ermässigung auf Pension, ab 30 GeniesserInnen",0) -> 0% Rabatt Langzeitaufenthalt | H39: =IF(C23>=30,-SUM(H33:H38)/100*5,0) -> 0.00 | Z39: =IF(C31=AM8,C18*AM16+C19*AM17+C20*AM18,IF(C31=AM9,C18*AM16+C19*AM17+C20*AM18,0)) -> 0 | AC39: Preis pro AE pro Tag
C41: Total Verpflegung | H41: =SUM(H31:H39) -> 0.00
C43: Zwischentotal Aufenthalt | H43: =+H28+H41 -> 800.00
B49: Ü B E R T R A G | C49: Total Übernachtung | F49: =+H28 -> 800.00
C50: Total Verpflegung | F50: =+H41 -> 0.00 | H50: =SUM(F49:F50) -> 800.00
B53: Z U S Ä T Z E | C53: S C H L A F E N
C55: -> Kissen, Kissenbezug, Fixleintuch | E55: =+C23 -> 10stk. | H55: inklusiv | AA55: =IF(#REF!=AK55,250,"0.00") ->  | AK55: durch Hotel-MA | AN55: 250
A56: besenrein | C56: -> Abgabe (besenrein oder gereinigt) | E56: besenrein | F56: CHF 290.00 | H56: =IF(E56="besenrein",F56,0) -> 290.00 | AA56: =IF(#REF!=AK56,250,"0.00") ->  | AK56: durch Hotel-MA | AN56: 250
A57: gereinigt | C57: =IF(E56="gereinigt"," Hausabgabe anstatt bis 10h bis 12h | Nachreinigung SJBZ CHF 65.-/h","") -> 
C59: -> Miete Duvets | F59: CHF 15.00 | H59: =+E59*F59 -> 0.00 | AA59: =IF(#REF!=AK59,250,"0.00") ->  | AK59: durch Hotel-MA | AN59: 250
C60: -> Miete Wolldecken | F60: CHF 08.00 | AK60: durch Lager-TN
C61: -> Bettenbezug durch Allegro-Team | E61: NEIN | F61: CHF 06.00 | H61: =IF(E61="JA",F61*C23,0) -> 0.00 | AA61: =IF(#REF!=AK61,250,"0.00") ->  | AK61: durch Hotel-MA | AN61: 250
C62: -> Hunde (Anzahl Tiere & Nächte) | F62: CHF 10.00 | H62: =E62*F62*AA9 -> 0.00
A64: NEIN | C64: -> Tägliche Kurz-Reinigung Duschen/WC | E64: NEIN | F64: CHF 35.00/d | H64: =IF(AND(E64="JA",AA9>2),(AA9-2)*F64,0) -> 0.00
A65: JA | C65: -> WC- & Handtuchpapier, Handseife | E65: NEIN | F65: CHF 00.50 | H65: =IF(E65="JA",F65*C23*(AA9-1),IF(E64="JA",F65*C23*(AA9-1),0)) -> 0.00
C67: G E N I E S S E N
C69: -> 20 Trocknungstücher / 20 Lappen | E69: NEIN | F69: CHF 20.00 | H69: =IF(E69="JA",F69,0) -> 0.00
C70: -> Feuerholz für Feuerstelle | F70: CHF 15.00 | H70: =+E70*F70 -> 0.00
C71: -> Holzkohlegrill "Tonne" samt 10kg Kohle | F71: CHF 25.00 | H71: =+E71*F71 -> 0.00
C73: -> Zusätzliches Frühstück am… | F73: 14.- | 10.- | 5.- | H73: =IF(E73>10000,($C$34*14)+(SUM($C$35:$C$36)*10)+($C$37*5),0) -> 0.00
C74: -> Zusätzliches Mittagessen am… | F74: 20.- | 16.- | 5.- | H74: =IF(E74>10000,($C$34*20)+(SUM($C$35:$C$36)*16)+($C$37*5),0) -> 0.00
C75: -> Zusätzliches Abendessen am… | F75: 22.- | 17.- | 5.- | H75: =IF(E75>10000,($C$34*22)+(SUM($C$35:$C$36)*17)+($C$37*5),0) -> 0.00
C77: -> Externe Gäste für Party am… | F77: CHF 400.00/d | H77: =IF(E77>0,F77,0) -> 0.00
C79: R E C H N E N
A81: Gesamtgruppe | C81: -> Reservation über… | E81: Gesamtgruppe | F81: =IF(E81="Gesamtgruppe","inkl.",5*C18) -> inkl. | H81: =IF(E81="Einzelpersonen",F81,0) -> 0.00
A82: Einzelpersonen | C82: -> Rechnungsstellung über… | E82: Gesamtgruppe | F82: =IF(E82="Gesamtgruppe","inkl.",5*C18) -> inkl. | H82: =IF(E82="Einzelpersonen",F82,0) -> 0.00
C84: Total Leistungen / Richtofferte (in CHF, inkl. Kurtaxen & MwSt.) | H84: =SUM(H49:H82) -> 1,090.00
C86: Achtung, es handelt sich hierbei um eine unverbindliche Richtofferte.
C87: Bei Interesse stellt Ihnen das SJBZ-Team gerne eine konkrete Offerte zusammen.
B90: B E M E R K U N G E N Neue Zeile mit "alt"-Taste und "Enter"-Taste
